bitfinex-derivatives/quotes_BNBF0:USTF0_20230831
["timestamp","ask_amount","ask_price","bid_price","bid_amount"]
[1693520143448,0.84855449,216.92,216.06,0.17563994]
[1693520143645,0.84855449,216.91,216.07,0.17563994]
[1693520143845,0.84855449,216.92,216.05,0.17563994]
[1693520144045,0.84855449,216.91,216.06,0.17563994]
[1693520144241,0.84855449,216.92,216.05,0.17563994]
[1693520144447,0.84855449,216.92,216.05,0.25094377]
[1693520144647,0.84855449,216.92,216.06,0.17563994]
[1693520145250,0.92412103,216.92,216.06,0.17563994]
[1693520145450,0.84855449,216.91,216.06,0.17563994]
[1693520146352,0.92412103,216.91,216.06,0.25094377]
[1693520146554,0.84855449,216.9,216.07,0.17563994]
[1693520147253,0.92412103,216.9,216.08,0.07530383]
[1693520147557,0.84855449,216.89,216.09,0.17563994]
[1693520148356,0.07556654,216.88,216.09,0.25094377]
[1693520148557,0.84855449,216.87,216.1,0.17563994]
[1693520149056,0.84855449,216.87,216.1,0.25094377]
[1693520149257,0.92412103,216.87,216.12,0.07530383]
[1693520149458,0.84855449,216.86,216.13,0.17563994]
[1693520149957,0.92412103,216.86,216.13,0.17563994]
[1693520150159,0.84855449,216.85,216.13,0.17563994]
[1693520150352,0.84855449,216.84,216.13,0.17563994]
[1693520150652,0.84855449,216.83,216.13,0.17563994]
[1693520150856,0.84855449,216.82,216.13,0.17563994]
[1693520151053,0.84855449,216.81,216.13,0.17563994]
[1693520151360,0.84855449,216.8,216.15,0.07530383]
[1693520151658,0.15113309,216.86,216.15,0.07530383]
[1693520151659,0.84855449,216.79,216.16,0.17563994]
[1693520151857,0.84855449,216.83,216.16,0.17563994]
[1693520152054,0.84855449,216.82,216.16,0.17563994]
[1693520152252,0.07556654,216.8,216.18,0.07530383]
[1693520152453,0.84855449,216.79,216.19,0.17563994]
[1693520152654,0.84855449,216.79,216.19,0.25094377]
[1693520152854,0.84855449,216.8,216.2,0.17563994]
[1693520153058,0.84855449,216.8,216.21,0.17563994]
[1693520153260,0.07556654,216.76,216.23,0.07530383]
[1693520153459,0.84855449,216.75,216.24,0.17563994]
[1693520154056,0.84855449,216.74,216.24,0.17563994]
[1693520154259,0.84855449,216.75,216.24,0.17563994]
[1693520154459,0.84855449,216.74,216.24,0.17563994]
[1693520154658,0.84855449,216.75,216.24,0.17563994]
[1693520155356,0.07556654,216.69,216.3,0.07530383]
[1693520155559,0.07556654,216.69,216.31,0.17563994]
[1693520156462,0.07556654,216.64,216.35,0.07530383]
[1693520156656,0.07556654,216.64,216.36,0.17563994]
[1693520158263,0.07556654,216.61,216.38,0.07530383]
[1693520158463,0.07556654,216.61,216.39,0.17563994]
[1693520160562,0.07556654,216.57,216.34,0.07530383]
[1693520160762,0.07556654,216.56,216.35,0.1745123]
[1693520161464,0.07556654,216.55,216.33,0.07530383]
[1693520161659,0.07556654,216.56,216.34,0.17453362]
[1693520161866,0.07556654,216.57,216.34,0.17453362]
[1693520162065,0.07556654,216.57,216.33,0.17453362]
[1693520162265,0.07556654,216.57,216.34,0.17453362]
[1693520162464,0.07556654,216.57,216.33,0.17453362]
[1693520162764,0.07556654,216.57,216.34,0.17453362]
[1693520163167,0.07556654,216.57,216.35,0.17453362]
[1693520163364,0.07556654,216.57,216.32,0.17453362]
[1693520163565,0.07556654,216.57,216.33,0.17467125]
[1693520163865,0.07556654,216.57,216.34,0.17467125]
[1693520164165,0.07556654,216.57,216.35,0.17467125]
[1693520164366,0.07556654,216.58,216.3,0.07530383]
[1693520164664,0.07556654,216.58,216.31,0.17467397]
[1693520165361,0.07556654,216.59,216.31,0.17467397]
[1693520166563,0.07556654,216.59,216.32,0.17467397]
[1693520166760,0.07556654,216.59,216.3,0.17467397]
[1693520166966,0.07556654,216.59,216.31,0.17467397]
[1693520167160,0.07556654,216.59,216.3,0.17467397]
[1693520168363,0.07556654,216.59,216.31,0.17467397]
[1693520168560,0.07556654,216.6,216.32,0.17467397]
[1693520168767,0.07556654,216.6,216.29,0.17467397]
[1693520169061,0.07556654,216.6,216.3,0.17467397]
[1693520169266,0.07556654,216.6,216.29,0.17467397]
[1693520171661,0.07556654,216.6,216.28,0.17467397]
[1693520171862,0.07556654,216.6,216.29,0.17467397]
[1693520172068,0.07556654,216.6,216.28,0.17467397]
[1693520172268,0.07556654,216.6,216.29,0.17467397]
[1693520172568,0.07556654,216.6,216.3,0.17467397]
[1693520172763,0.07556654,216.6,216.31,0.17467397]
[1693520172962,0.07556654,216.6,216.28,0.17467397]
[1693520173161,0.07556654,216.6,216.29,0.17467397]
[1693520173468,0.07556654,216.6,216.3,0.17467397]
[1693520173668,0.07556654,216.6,216.28,0.17467397]
[1693520173968,0.07556654,216.6,216.29,0.17467397]
[1693520174267,0.07556654,216.6,216.3,0.17467397]
[1693520174468,0.07556654,216.6,216.31,0.17467397]
[1693520174663,0.07556654,216.6,216.28,0.17467397]
[1693520174967,0.07556654,216.6,216.29,0.17467397]
[1693520175168,0.07556654,216.6,216.28,0.17467397]
[1693520175468,0.07556654,216.6,216.29,0.17467397]
[1693520175669,0.07556654,216.6,216.28,0.17467397]
[1693520177370,0.07556654,216.61,216.28,0.17467397]
[1693520180368,0.07556654,216.62,216.28,0.2499778]
[1693520180565,0.07556654,216.62,216.29,0.17467397]
[1693520185276,0.07556654,216.62,216.29,0.2499778]
[1693520185576,0.07556654,216.62,216.3,0.17467397]
[1693520185976,0.07556654,216.61,216.3,0.17467397]
[1693520186175,0.07556654,216.61,216.29,0.17467397]
[1693520186376,0.07556654,216.61,216.3,0.17467397]
[1693520187175,0.07556654,216.6,216.29,0.17467397]
[1693520187375,0.07556654,216.6,216.3,0.17467397]
[1693520187677,0.07556654,216.59,216.31,0.17467397]
[1693520187877,0.07556654,216.59,216.28,0.17467397]
[1693520188078,0.07556654,216.59,216.29,0.17467397]
[1693520188271,0.07556654,216.59,216.28,0.2499778]
[1693520188476,0.07556654,216.59,216.29,0.17467397]
[1693520189377,0.07556654,216.58,216.29,0.17467397]
[1693520191477,0.07556654,216.58,216.29,0.2499778]
[1693520191678,0.07556654,216.58,216.3,0.17467397]
[1693520192279,0.07556654,216.57,216.3,0.2499778]
[1693520192480,0.07556654,216.57,216.31,0.17467397]
[1693520193381,0.07556654,216.55,216.31,0.2499778]
[1693520193577,0.07556654,216.55,216.32,0.17467397]
[1693520195182,0.07556654,216.56,216.32,0.17467397]
[1693520200185,0.07556654,216.55,216.32,0.17467397]
[1693520200381,0.07556654,216.56,216.32,0.17467397]
[1693520202284,0.07556654,216.55,216.32,0.17467397]
[1693520208392,0.07556654,216.55,216.32,0.2499778]
[1693520208691,0.07556654,216.55,216.33,0.17467397]
[1693520209089,0.07556654,216.55,216.32,0.17467397]
[1693520209291,0.07556654,216.55,216.33,0.17467397]
[1693520210491,0.07556654,216.54,216.34,0.17467397]
[1693520210687,0.07556654,216.54,216.31,0.07530383]
[1693520210993,0.07556654,216.54,216.32,0.17494152]
[1693520211492,0.07556654,216.55,216.32,0.25024535]
[1693520211687,0.07556654,216.56,216.33,0.17494152]
[1693520212295,0.07556654,216.56,216.33,0.25024535]
[1693520212490,0.07556654,216.56,216.34,0.17494152]
[1693520217300,0.07556654,216.55,216.34,0.17494152]
[1693520218301,0.07556654,216.55,216.34,0.25024535]
[1693520218601,0.07556654,216.55,216.35,0.17494152]
[1693520223103,0.07556654,216.56,216.35,0.17494152]
[1693520227802,0.07556654,216.57,216.35,0.25024535]
[1693520228106,0.07556654,216.57,216.36,0.17494152]
[1693520228309,0.07556654,216.57,216.35,0.17494152]
[1693520228507,0.07556654,216.57,216.36,0.17486415]
[1693520228708,0.07556654,216.57,216.35,0.17486415]
[1693520234815,0.07556654,216.57,216.34,0.17486415]
[1693520235108,0.07556654,216.56,216.35,0.17486415]
[1693520235313,0.07556654,216.56,216.33,0.07530383]
[1693520235314,0.07556654,216.56,216.34,0.17486415]
[1693520235508,0.07556654,216.56,216.35,0.17489463]
[1693520235714,0.07556654,216.56,216.34,0.17489463]
[1693520236015,0.07556654,216.56,216.35,0.17489315]
[1693520236211,0.07556654,216.56,216.34,0.17489315]
[1693520236518,0.07556654,216.56,216.35,0.17490458]
[1693520236814,0.07556654,216.56,216.33,0.07530383]
[1693520237116,0.07556654,216.56,216.34,0.17490528]
[1693520242120,0.07556654,216.57,216.34,0.25020911]
[1693520242417,0.07556654,216.57,216.28,0.15060766]
[1693520242418,0.07556654,216.57,216.35,0.25020911]
[1693520242618,0.07556654,216.57,216.36,0.17490528]
[1693520242918,0.07556654,216.57,216.37,0.17490528]
[1693520243115,0.07556654,216.57,216.35,0.17490528]
[1693520243312,0.07556654,216.57,216.36,0.17481718]
[1693520243617,0.07556654,216.57,216.37,0.17481718]
[1693520243813,0.07556654,216.57,216.35,0.17481718]
[1693520244018,0.07556654,216.57,216.36,0.17483062]
[1693520244217,0.07556654,216.57,216.35,0.17483062]
[1693520244417,0.07556654,216.57,216.36,0.17483062]
[1693520244618,0.07556654,216.57,216.35,0.17483062]
[1693520244818,0.07556654,216.57,216.36,0.17483062]
[1693520245124,0.07556654,216.57,216.37,0.17483062]
[1693520245315,0.07556654,216.57,216.35,0.25013445]
[1693520245517,0.07556654,216.57,216.36,0.17483356]
[1693520246018,0.07556654,216.57,216.37,0.17483356]
[1693520246218,0.07556654,216.57,216.34,0.07530383]
[1693520246422,0.07556654,216.57,216.35,0.17482753]
[1693520247517,3.27885776,216.92,216.35,0.17482753]
[1693520247720,0.07570843,216.57,216.36,0.17482753]
[1693520247916,0.07570843,216.57,216.37,0.17482753]
[1693520248120,0.07570843,216.57,216.35,0.17482753]
[1693520248323,0.07570843,216.57,216.36,0.17483982]
[1693520248619,0.07570843,216.57,216.37,0.17483982]
[1693520248823,0.07570843,216.57,216.35,0.17483982]
[1693520251718,0.07570843,216.56,216.35,0.17483982]
[1693520268037,0.07570843,216.56,216.35,0.25026075]
[1693520268234,0.07570843,216.56,216.36,0.17483982]
[1693520268540,0.07570843,216.56,216.37,0.1749608]
[1693520268838,0.07570843,216.56,216.34,0.07542093]
[1693520269136,0.07570843,216.56,216.35,0.17496043]
[1693520269538,0.07570843,216.56,216.35,0.25038136]
[1693520269738,0.07570843,216.57,216.36,0.17496043]
[1693520270041,0.07570843,216.56,216.36,0.17496043]
[1693520270235,0.07570843,216.56,216.35,0.17496043]
[1693520270437,0.07570843,216.57,216.36,0.17495907]
[1693520270633,0.07570843,216.56,216.36,0.17495907]
[1693520271335,0.07570843,216.56,216.37,0.17495907]
[1693520271534,0.07570843,216.56,216.35,0.07542093]
[1693520271839,0.07570843,216.56,216.36,0.17496078]
[1693520284449,0.07570843,216.57,216.36,0.25038171]
[1693520284648,0.07570843,216.57,216.37,0.17496078]
[1693520285347,0.07570843,216.58,216.37,0.17496078]
[1693520285650,0.07570843,216.57,216.37,0.17496078]
[1693520286550,0.15141686,216.6,216.37,0.17496078]
[1693520286551,0.07570843,216.58,216.37,0.17496078]
[1693520288548,0.07570843,216.57,216.37,0.17496078]
[1693520288753,0.07570843,216.57,216.35,0.07542093]
[1693520288947,0.07570843,216.57,216.36,0.17492169]
[1693520291454,0.07570843,216.56,216.36,0.17492169]
[1693520291752,0.07570843,216.56,216.34,0.07542093]
[1693520291945,0.07570843,216.56,216.35,0.17497382]
[1693520301059,0.07570843,216.57,216.35,0.25039475]
[1693520301259,0.07570843,216.57,216.36,0.17497382]
[1693520303662,0.07570843,216.58,216.36,0.25039475]
[1693520303866,0.07570843,216.58,216.37,0.17497382]
[1693520304060,0.07570843,216.57,216.37,0.17497382]
[1693520304357,0.07570843,216.58,216.37,0.17497382]
[1693520304563,0.07570843,216.57,216.37,0.17497382]
[1693520304758,0.07570843,216.57,216.35,0.07542093]
[1693520304959,0.07570843,216.57,216.36,0.17486171]
[1693520306365,2.52361442,216.7,216.36,0.17486171]
[1693520306665,0.07571523,216.57,216.35,0.07544376]
[1693520306965,0.07571523,216.57,216.36,0.1748674]
[1693520318872,0.07571523,216.57,216.35,0.1748674]
[1693520319067,0.07571523,216.57,216.36,0.174857]
[1693520319269,0.07571523,216.57,216.34,0.07544376]
[1693520319468,0.07571523,216.57,216.35,0.17485245]
[1693520319669,0.07571523,216.57,216.35,0.25029621]
[1693520319870,0.07571523,216.57,216.36,0.17485245]
[1693520320271,0.07571523,216.57,216.35,0.25029621]
[1693520320465,0.07571523,216.57,216.36,0.17484742]
[1693520321571,0.07571523,216.56,216.36,0.17484742]
[1693520326676,0.07571523,216.57,216.36,0.17484742]
[1693520328273,0.07571523,216.57,216.36,0.25029118]
[1693520328477,0.07571523,216.57,216.37,0.17484742]
[1693520328678,0.07571523,216.57,216.36,0.17484742]
[1693520328877,0.07571523,216.57,216.37,0.17482326]
[1693520331374,0.07571523,216.58,216.37,0.25026702]
[1693520331574,0.07571523,216.58,216.38,0.17482326]
[1693520333276,0.07571523,216.59,216.38,0.17482326]
[1693520334681,0.07571523,216.59,216.37,0.17482326]
[1693520334879,0.07571523,216.59,216.38,0.17475564]
[1693520335176,0.07571523,216.58,216.36,0.07544376]
[1693520335376,0.07571523,216.58,216.37,0.17477619]
[1693520336386,0.07571523,216.57,216.34,0.07544376]
[1693520336584,0.07571523,216.57,216.35,0.17483793]
[1693520336987,0.07571523,216.57,216.35,0.25028169]
[1693520337288,0.07571523,216.57,216.36,0.17483793]
[1693520339687,0.07571523,216.58,216.36,0.17483793]
[1693520339885,0.07571523,216.57,216.36,0.17483793]
[1693520350298,0.07571523,216.58,216.36,0.25028169]
[1693520350498,0.07571523,216.58,216.37,0.17483793]
[1693520350699,0.07571523,216.59,216.37,0.17483793]
[1693520353905,0.07571523,216.58,216.37,0.17483793]
[1693520354105,0.07571523,216.58,216.35,0.07544376]
[1693520354299,0.07571523,216.58,216.36,0.17468462]
[1693520356603,0.07571523,216.57,216.36,0.17468462]
[1693520357002,0.07571523,216.57,216.35,0.17468462]
[1693520357204,0.07571523,216.57,216.36,0.17472318]
[1693520357504,0.07571523,216.57,216.34,0.07544376]
[1693520357706,0.07571523,216.57,216.35,0.17472993]
[1693520359802,0.07571523,216.58,216.35,0.25017369]
[1693520360008,0.07571523,216.58,216.36,0.17472993]
[1693520360410,0.07571523,216.63,216.4,0.07544376]
[1693520360605,0.07571523,216.64,216.4,0.07544376]
[1693520360910,0.07571523,216.68,216.42,0.07544376]
[1693520361209,0.07571523,216.68,216.43,0.17472993]
[1693520362608,0.07571523,216.7,216.43,0.17472993]
[1693520362808,0.07571523,216.7,216.41,0.17472993]
[1693520363008,0.07571523,216.7,216.42,0.17472993]
[1693520363208,0.07571523,216.7,216.43,0.17472993]
[1693520363411,0.07571523,216.7,216.41,0.17472993]
[1693520363614,0.07571523,216.72,216.42,0.17472993]
[1693520363812,0.07571523,216.72,216.43,0.17472993]
[1693520364006,0.07571523,216.72,216.39,0.17472993]
[1693520364207,0.07571523,216.72,216.4,0.17472993]
[1693520364413,0.07571523,216.72,216.41,0.17472993]
[1693520364610,0.07571523,216.72,216.42,0.17472993]
[1693520364813,0.0754265,216.73,216.39,0.17472993]
[1693520365007,0.0754265,216.73,216.4,0.17472993]
[1693520365213,0.0754265,216.73,216.41,0.17472993]
[1693520365413,0.0754265,216.73,216.38,0.17472993]
[1693520365707,0.0754265,216.73,216.39,0.17472993]
[1693520366113,0.0754265,216.73,216.4,0.17472993]
[1693520366310,0.0754265,216.73,216.38,0.17472993]
[1693520366508,0.0754265,216.74,216.39,0.17472993]
[1693520366707,0.0754265,216.74,216.37,0.17472993]
[1693520367014,0.0754265,216.74,216.38,0.17472993]
[1693520367213,0.0754265,216.73,216.39,0.17472993]
[1693520367413,0.0754265,216.73,216.37,0.17472993]
[1693520367615,0.0754265,216.74,216.38,0.17472993]
[1693520367814,0.0754265,216.74,216.39,0.17472993]
[1693520368008,0.0754265,216.74,216.4,0.17472993]
[1693520368208,0.0754265,216.74,216.37,0.17472993]
[1693520368407,0.0754265,216.74,216.38,0.17472993]
[1693520368613,0.0754265,216.74,216.39,0.17472993]
[1693520368813,0.0754265,216.74,216.4,0.17472993]
[1693520369013,0.0754265,216.74,216.36,0.17472993]
[1693520369215,0.0754265,216.74,216.37,0.17472993]
[1693520369515,0.0754265,216.74,216.38,0.17472993]
[1693520369715,0.0754265,216.74,216.39,0.17472993]
[1693520369916,0.0754265,216.74,216.36,0.17472993]
[1693520370116,0.0754265,216.74,216.37,0.17472993]
[1693520370318,0.0754265,216.74,216.38,0.17472993]
[1693520370516,0.0754265,216.74,216.39,0.17472993]
[1693520370716,0.0754265,216.75,216.35,0.17472993]
[1693520370911,0.0754265,216.75,216.36,0.17472993]
[1693520371112,0.0754265,216.75,216.35,0.17472993]
[1693520371311,0.0754265,216.75,216.36,0.17472993]
[1693520371516,0.0754265,216.75,216.37,0.17472993]
[1693520371711,0.0754265,216.75,216.34,0.07503386]
[1693520371712,0.0754265,216.75,216.38,0.17472993]
[1693520371916,0.0754265,216.75,216.35,0.17472993]
[1693520372116,0.0754265,216.75,216.36,0.17472993]
[1693520372416,0.0754265,216.75,216.37,0.17472993]
[1693520372716,0.0754265,216.75,216.38,0.17472993]
[1693520372911,0.0754265,216.75,216.39,0.17472993]
[1693520373116,0.0754265,216.75,216.4,0.17472993]
[1693520373416,0.0754265,216.75,216.41,0.17472993]
[1693520373616,0.0754265,216.75,216.35,0.17472993]
[1693520373917,0.0754265,216.75,216.36,0.17472993]
[1693520374218,0.0754265,216.75,216.37,0.17472993]
[1693520374516,0.0754265,216.75,216.38,0.17472993]
[1693520374716,0.0754265,216.75,216.39,0.17472993]
[1693520374916,0.0754265,216.75,216.4,0.17472993]
[1693520375117,0.0754265,216.75,216.41,0.17472993]
[1693520375317,0.0754265,216.75,216.42,0.17472993]
[1693520375618,0.0754265,216.75,216.43,0.17472993]
[1693520375818,0.0754265,216.75,216.44,0.17472993]
[1693520376013,0.0754265,216.75,216.45,0.17472993]
[1693520376212,0.0754265,216.75,216.33,0.07503386]
[1693520376418,0.0754265,216.75,216.34,0.17438917]
[1693520378516,0.0754265,216.76,216.34,0.17438917]
[1693520378923,0.0754265,216.75,216.34,0.17438917]
[1693520379623,0.0754265,216.75,216.35,0.17438917]
[1693520379823,0.0754265,216.75,216.36,0.17438917]
[1693520380023,0.0754265,216.75,216.37,0.17438917]
[1693520380322,0.0754265,216.75,216.38,0.17438917]
[1693520380517,0.0754265,216.75,216.33,0.17438917]
[1693520380723,0.0754265,216.75,216.34,0.17438917]
[1693520381724,0.0754265,216.74,216.34,0.17438917]
[1693520383729,0.0754265,216.74,216.34,0.24942303]
[1693520383927,0.0754265,216.74,216.35,0.17438917]
[1693520386930,0.0754265,216.73,216.35,0.17438917]
[1693520387530,0.0754265,216.73,216.35,0.24942303]
[1693520387831,0.0754265,216.73,216.36,0.17438917]
[1693520389831,0.0754265,216.72,216.36,0.24942303]
[1693520390030,0.0754265,216.72,216.37,0.17438917]
[1693520391530,0.0754265,216.71,216.37,0.24942303]
[1693520391729,0.0754265,216.71,216.38,0.17438917]
[1693520392731,0.0754265,216.7,216.38,0.24942303]
[1693520392933,0.0754265,216.7,216.39,0.17438917]
[1693520393835,0.0754265,216.68,216.4,0.07503386]
[1693520394135,0.0754265,216.68,216.41,0.17438917]
[1693520394837,0.0754265,216.65,216.43,0.07503386]
[1693520395129,0.0754265,216.65,216.44,0.17438917]
[1693520395635,0.150853,216.67,216.44,0.17438917]
[1693520395636,0.0754265,216.64,216.44,0.24942303]
[1693520395834,0.0754265,216.64,216.45,0.17438917]
[1693520403742,0.0754265,216.64,216.43,0.07503386]
[1693520403940,0.0754265,216.64,216.44,0.17439497]
[1693520404941,0.0754265,216.64,216.44,0.24942883]
[1693520405238,0.0754265,216.64,216.45,0.17439588]
[1693520405443,0.0754265,216.64,216.44,0.07503386]
[1693520406241,0.0754265,216.64,216.45,0.17439307]
[1693520406443,0.0754265,216.64,216.43,0.07503386]
[1693520406740,0.0754265,216.64,216.44,0.17439518]
[1693520409143,0.0754265,216.63,216.44,0.17439518]
[1693520409346,0.0754265,216.64,216.44,0.17439518]
[1693520411347,0.0754265,216.63,216.43,0.07503386]
[1693520411549,0.0754265,216.57,216.36,0.07503386]
[1693520411844,0.0754265,216.6,216.37,0.17481988]
[1693520412050,0.0754265,216.6,216.34,0.17481988]
[1693520412248,0.0754265,216.6,216.35,0.17481988]
[1693520412449,0.0754265,216.6,216.36,0.17481988]
[1693520412644,0.0754265,216.61,216.37,0.17481988]
[1693520412951,0.0754265,216.61,216.32,0.07503386]
[1693520413249,0.0754265,216.61,216.33,0.17483711]
[1693520413750,0.0754265,216.62,216.33,0.17483711]
[1693520414147,0.0754265,216.62,216.31,0.24987097]
[1693520414349,0.0754265,216.62,216.32,0.17483711]
[1693520414543,0.0754265,216.63,216.32,0.17483711]
[1693520414747,0.0754265,216.63,216.31,0.17483711]
[1693520414944,0.0754265,216.63,216.32,0.17483711]
[1693520415150,0.0754265,216.63,216.33,0.17483711]
[1693520415349,0.0754265,216.63,216.31,0.17483711]
[1693520415549,0.0754265,216.63,216.32,0.17483711]
[1693520415752,0.0754265,216.63,216.31,0.17483711]
[1693520416044,0.0754265,216.63,216.32,0.17483711]
[1693520416243,0.0754265,216.63,216.3,0.17483711]
[1693520416450,0.0754265,216.64,216.31,0.17483711]
[1693520416750,0.0754265,216.64,216.32,0.17483711]
[1693520416947,0.0754265,216.64,216.33,0.17483711]
[1693520417145,0.0754265,216.64,216.34,0.17483711]
[1693520417348,0.0754265,216.64,216.3,0.17483711]
[1693520417550,0.0754265,216.64,216.31,0.17483711]
[1693520417751,0.0754265,216.64,216.29,0.17483711]
[1693520417952,0.0754265,216.64,216.3,0.17483711]
[1693520418152,0.0754265,216.64,216.31,0.17483711]
[1693520418451,0.0754265,216.64,216.32,0.17483711]
[1693520418652,0.0754265,216.65,216.33,0.17483711]
[1693520418851,0.0754265,216.65,216.34,0.17483711]
[1693520419048,0.0754265,216.65,216.28,0.17483711]
[1693520419252,0.0754265,216.65,216.29,0.17483711]
[1693520419450,0.0754265,216.65,216.28,0.17483711]
[1693520419643,0.0754265,216.65,216.29,0.17483711]
[1693520419849,0.0754265,216.65,216.3,0.17483711]
[1693520420150,0.0754265,216.65,216.31,0.17483711]
[1693520420452,0.0754265,216.65,216.32,0.17483711]
[1693520420747,0.0754265,216.66,216.33,0.17483711]
[1693520420953,0.0754265,216.66,216.34,0.17483711]
[1693520421151,0.0754265,216.66,216.35,0.17483711]
[1693520421351,0.0754265,216.66,216.36,0.17483711]
[1693520421650,0.0754265,216.66,216.37,0.17483711]
[1693520421850,0.0754265,216.66,216.27,0.07503386]
[1693520422048,0.0754265,216.66,216.28,0.17477166]
[1693520423852,0.0754265,216.66,216.27,0.17477166]
[1693520424047,0.0754265,216.66,216.28,0.17477166]
[1693520424244,0.0754265,216.66,216.27,0.17477166]
[1693520424449,0.0754265,216.66,216.28,0.17477166]
[1693520424749,0.0754265,216.66,216.29,0.17477166]
[1693520424950,0.0754265,216.66,216.3,0.17477166]
[1693520425251,0.0754265,216.66,216.31,0.17477166]
[1693520425451,0.0754265,216.66,216.32,0.17477166]
[1693520425648,0.0754265,216.66,216.33,0.17477166]
[1693520425850,0.0754265,216.66,216.27,0.17477166]
[1693520426052,0.0754265,216.66,216.28,0.17477166]
[1693520426352,0.0754265,216.66,216.29,0.17477166]
[1693520426553,0.0754265,216.66,216.27,0.17477166]
[1693520426752,0.0754265,216.66,216.28,0.17477166]
[1693520426949,0.0754265,216.67,216.27,0.17477166]
[1693520427248,0.0754265,216.67,216.28,0.17477166]
[1693520431058,0.0754265,216.66,216.28,0.17477166]
[1693520433456,0.0754265,216.66,216.28,0.24980552]
[1693520433656,0.0754265,216.66,216.29,0.17477166]
[1693520433857,0.0754265,216.65,216.29,0.17477166]
[1693520436659,0.0754265,216.64,216.29,0.17477166]
[1693520438160,0.0754265,216.64,216.29,0.24980552]
[1693520438459,0.0754265,216.64,216.3,0.17477166]
[1693520438660,0.0754265,216.63,216.3,0.17477166]
[1693520439762,0.0754265,216.63,216.3,0.24980552]
[1693520439963,0.0754265,216.63,216.31,0.17477166]
[1693520440662,0.0754265,216.62,216.31,0.17477166]
[1693520441661,0.0754265,216.61,216.31,0.24980552]
[1693520441859,0.0754265,216.61,216.32,0.17477166]
[1693520442765,0.0754265,216.6,216.32,0.24980552]
[1693520442962,0.0754265,216.6,216.33,0.17477166]
[1693520443666,0.0754265,216.59,216.33,0.24980552]
[1693520443870,0.0754265,216.59,216.34,0.17477166]
[1693520444763,0.0754265,216.56,216.36,0.07503386]
[1693520444968,0.0754265,216.56,216.37,0.17477166]
[1693520448564,0.0754265,216.57,216.37,0.17477166]
[1693520459775,0.0754265,216.57,216.37,0.24980552]
[1693520459969,0.0754265,216.57,216.38,0.17477166]
[1693520461672,0.0754265,216.57,216.36,0.07503386]
[1693520461878,0.0754265,216.57,216.37,0.17477905]
[1693520464881,0.0754265,216.56,216.37,0.17477905]
[1693520466484,0.0754265,216.55,216.35,0.07503386]
[1693520466679,0.0754265,216.55,216.34,0.07503386]
[1693520466875,0.0754265,216.55,216.35,0.17486409]
[1693520467282,0.0754265,216.57,216.35,0.24989795]
[1693520467481,0.0754265,216.58,216.37,0.07503386]
[1693520467681,0.0754265,216.58,216.38,0.17486409]
[1693520470079,0.0754265,216.58,216.36,0.07503386]
[1693520470283,0.0754265,216.58,216.37,0.17473054]
[1693520471484,0.0754265,216.58,216.37,0.2497644]
[1693520471686,0.0754265,216.58,216.38,0.17473054]
[1693520471885,0.0754265,216.58,216.36,0.07503386]
[1693520471886,0.0754265,216.58,216.37,0.17473054]
[1693520475786,0.0754265,216.57,216.37,0.17473054]
[1693520476791,0.0754265,216.57,216.36,0.17473054]
[1693520476989,0.0754265,216.57,216.37,0.17449689]
[1693520477189,0.0754265,216.57,216.35,0.07503386]
[1693520477390,0.0754265,216.57,216.36,0.17449219]
[1693520480397,1.00568671,216.65,216.36,0.17449219]
[1693520480693,3.27375715,217.09,216.37,0.17449219]
[1693520480890,0.84864603,229.99,214.23,0.17449219]
[1693520481089,0.84864603,229.98,214.24,0.17449692]
[1693520481288,0.84864603,229.99,214.23,0.17449692]
[1693520481594,0.84864603,229.98,214.24,0.17449692]
[1693520481793,0.84864603,229.99,214.23,0.17449692]
[1693520485590,1.6982301,218.86,214.23,0.17449692]
[1693520485793,0.07571952,216.57,216.35,0.07530863]
[1693520486098,0.07571952,216.57,216.36,0.17449692]
[1693520498396,0.07571952,216.56,216.35,0.17449692]
[1693520498595,0.07571952,216.56,216.36,0.17464205]
[1693520498895,0.07571952,216.56,216.34,0.07530863]
[1693520499098,0.07571952,216.56,216.35,0.17464444]
[1693520513514,0.07571952,216.56,216.35,0.24995307]
[1693520513813,0.07571952,216.56,216.36,0.17464444]
[1693520518020,0.07571952,216.57,216.36,0.24995307]
[1693520518220,0.07571952,216.57,216.37,0.17464444]
[1693520518822,0.07571952,216.58,216.37,0.17464444]
[1693520520525,0.07571952,216.57,216.37,0.17464444]
[1693520520828,0.07571952,216.57,216.36,0.07530863]
[1693520521026,0.07282248,216.57,216.37,0.17459582]
[1693520521525,0.07282248,216.57,216.35,0.07530863]
[1693520521724,0.07282248,216.57,216.36,0.17332522]
[1693520522024,0.15143904,216.6,216.36,0.17069279]
[1693520522225,0.15143904,216.59,216.36,0.17069279]
[1693520538231,0.15143904,216.58,216.36,0.17069279]
[1693520544135,0.15143904,216.59,216.36,0.17069279]
[1693520550646,0.15143904,216.58,216.36,0.17069279]
[1693520554750,0.15143904,216.58,216.36,0.24600142]
[1693520554947,0.15143904,216.58,216.37,0.17069279]
[1693520562454,0.15143904,216.58,216.36,0.07530863]
[1693520562652,0.15143904,216.57,216.35,0.07530863]
[1693520562952,0.15143904,216.57,216.36,0.17328523]
[1693520565659,0.15143904,216.58,216.36,0.17328523]
[1693520568261,3.27486791,216.89,216.36,0.17328523]